[Event "Open NK Rapid 2025 bord 26-50"]
[Site "Helmond, Netherlands"]
[Date "2025.05.03"]
[Round "9.17"]
[White "Becx, Cesar"]
[Black "Blok, Lukas"]
[Result "1-0"]
[TimeControl "15 min +5 sec increment"]
[WhiteFideId "1001183"]
[BlackFideId "40110494"]
[WhiteElo "2075"]
[BlackElo "1741"]

1. f4 {[%clk 00:15:09]} d6 {[%clk 00:15:06]} {[%emt 00:00:05]} 2. Nf3 {[%clk
00:15:13]} Nf6 {[%clk 00:15:09]} 3. d3 {[%clk 00:15:12]} {[%emt 00:00:06]} g6
{[%clk 00:15:13]} {[%emt 00:00:02]} 4. e4 {[%clk 00:15:14]} {[%emt 00:00:03]}
Bg7 {[%clk 00:15:16]} {[%emt 00:00:01]} 5. g3 {[%clk 00:15:13]} {[%emt
00:00:06]} O-O {[%clk 00:15:18]} {[%emt 00:00:03]} 6. Bg2 {[%clk 00:15:17]}
{[%emt 00:00:01]} c5 {[%clk 00:15:11]} {[%emt 00:00:12]} 7. O-O {[%clk
00:15:19]} {[%emt 00:00:03]} Nc6 {[%clk 00:15:14]} {[%emt 00:00:02]} 8. Nc3
{[%clk 00:15:21]} {[%emt 00:00:04]} e5 {[%clk 00:15:16]} {[%emt 00:00:02]} 9.
f5 {[%clk 00:15:01]} {[%emt 00:00:25]} a6 {[%clk 00:14:36]} {[%emt 00:00:46]}
10. Nh4 {[%clk 00:14:01]} {[%emt 00:01:04]} Ne8 {[%clk 00:12:12]} {[%emt
00:02:29]} 11. fxg6 {[%clk 00:13:54]} {[%emt 00:00:13]} fxg6 {[%clk 00:11:37]}
{[%emt 00:00:39]} 12. Be3 {[%clk 00:12:39]} {[%emt 00:01:20]} Be6 {[%clk
00:10:05]} {[%emt 00:01:37]} 13. Qd2 {[%clk 00:12:36]} {[%emt 00:00:08]} Nd4
{[%clk 00:09:39]} {[%emt 00:00:31]} 14. Nd5 {[%clk 00:09:32]} {[%emt 00:03:09]}
Bxd5 {[%clk 00:06:16]} {[%emt 00:03:28]} 15. exd5 {[%clk 00:09:35]} {[%emt
00:00:02]} Bf6 {[%clk 00:05:47]} {[%emt 00:00:35]} 16. c3 {[%clk 00:08:27]}
{[%emt 00:01:13]} Nb5 {[%clk 00:04:37]} {[%emt 00:01:15]} 17. Bh6 {[%clk
00:06:24]} {[%emt 00:02:07]} Ng7 {[%clk 00:04:29]} {[%emt 00:00:13]} 18. Nf3
{[%clk 00:06:11]} {[%emt 00:00:18]} Nc7 {[%clk 00:03:32]} {[%emt 00:01:02]} 19.
c4 {[%clk 00:04:42]} {[%emt 00:01:35]} Rb8 {[%clk 00:03:17]} {[%emt 00:00:20]}
20. Ng5 {[%clk 00:04:22]} {[%emt 00:00:24]} Nf5 {[%clk 00:02:58]} {[%emt
00:00:24]} 21. Ne4 {[%clk 00:04:22]} {[%emt 00:00:05]} Bg7 {[%clk 00:02:48]}
{[%emt 00:00:15]} 22. Bxg7 {[%clk 00:03:03]} {[%emt 00:01:24]} Kxg7 {[%clk
00:02:49]} {[%emt 00:00:04]} 23. Rf2 {[%clk 00:02:07]} {[%emt 00:01:00]} b5
{[%clk 00:01:41]} {[%emt 00:01:14]} 24. b3 {[%clk 00:02:00]} {[%emt 00:00:12]}
bxc4 {[%clk 00:01:39]} {[%emt 00:00:07]} 25. dxc4 {[%clk 00:01:57]} {[%emt
00:00:08]} Qe7 {[%clk 00:01:34]} {[%emt 00:00:10]} 26. Raf1 {[%clk 00:01:50]}
{[%emt 00:00:13]} Nd4 {[%clk 00:01:27]} {[%emt 00:00:11]} 27. g4 {[%clk
00:01:28]} {[%emt 00:00:28]} Rxf2 {[%clk 00:01:15]} {[%emt 00:00:17]} 28. Qxf2
{[%clk 00:01:24]} {[%emt 00:00:08]} Re8 {[%clk 00:00:33]} {[%emt 00:00:47]} 29.
Qf6+ {[%clk 00:00:57]} {[%emt 00:00:31]} Qxf6 {[%clk 00:00:22]} {[%emt
00:00:17]} 30. Rxf6 {[%clk 00:01:01]} Rd8 {[%clk 00:00:18]} {[%emt 00:00:09]}
31. Rxd6 {[%clk 00:01:01]} {[%emt 00:00:05]} Rxd6 {[%clk 00:00:18]} {[%emt
00:00:05]} 32. Nxd6 {[%clk 00:01:05]} {[%emt 00:00:01]} Ne2+ {[%clk 00:00:16]}
{[%emt 00:00:07]} 33. Kf2 {[%clk 00:00:59]} {[%emt 00:00:10]} Nf4 {[%clk
00:00:17]} {[%emt 00:00:05]} 34. Be4 {[%clk 00:00:57]} {[%emt 00:00:07]} h5
{[%clk 00:00:15]} {[%emt 00:00:07]} 35. gxh5 {[%clk 00:01:00]} {[%emt
00:00:02]} Nxh5 {[%clk 00:00:19]} 36. Nb7 {[%clk 00:00:57]} {[%emt 00:00:08]}
Nf6 {[%clk 00:00:12]} {[%emt 00:00:12]} 37. Nxc5 {[%clk 00:01:00]} {[%emt
00:00:02]} Nxe4+ {[%clk 00:00:11]} {[%emt 00:00:06]} 38. Nxe4 {[%clk 00:01:04]}
{[%emt 00:00:01]} Kf7 {[%clk 00:00:14]} {[%emt 00:00:02]} 39. Kg3 {[%clk
00:01:00]} {[%emt 00:00:09]} Ne8 {[%clk 00:00:14]} {[%emt 00:00:05]} 40. Kg4
{[%clk 00:01:02]} {[%emt 00:00:03]} Ng7 {[%clk 00:00:18]} {[%emt 00:00:02]} 41.
c5 {[%clk 00:01:00]} {[%emt 00:00:07]} Ke7 {[%clk 00:00:20]} 42. Kg5 {[%clk
00:01:01]} {[%emt 00:00:04]} Nf5 {[%clk 00:00:21]} {[%emt 00:00:06]} 43. Kxg6
{[%clk 00:01:01]} {[%emt 00:00:04]} Ne3 {[%emt 00:00:03]} 44. d6+ {[%clk
00:00:53]} {[%emt 00:00:12]} Ke6 {[%clk 00:00:16]} {[%emt 00:00:13]} 45. h4
{[%clk 00:00:50]} {[%emt 00:00:07]} Nd5 {[%clk 00:00:13]} {[%emt 00:00:09]} 46.
h5 {[%clk 00:00:47]} {[%emt 00:00:08]} Nf4 {[%clk 00:00:17]} {[%emt 00:00:01]}
47. Kg5 {[%clk 00:00:48]} {[%emt 00:00:04]} Kd5 {[%clk 00:00:20]} {[%emt
00:00:02]} 48. d7 {[%clk 00:00:44]} {[%emt 00:00:09]} Kxe4 {[%clk 00:00:24]}
{[%emt 00:00:02]} 49. h6 {[%clk 00:00:38]} {[%emt 00:00:10]} Ne6+ {[%clk
00:00:22]} {[%emt 00:00:07]} 50. Kf6 {[%clk 00:00:29]} {[%emt 00:00:13]} Kd5
{[%clk 00:00:20]} {[%emt 00:00:08]} 51. h7 {[%clk 00:00:31]} {[%emt 00:00:03]}
Nf8 {[%clk 00:00:21]} {[%emt 00:00:04]} 52. d8=Q+ {[%clk 00:00:29]} {[%emt
00:00:08]} 1-0

[Event "Open NK Rapid 2025 bord 26-50"]
[Site "Helmond, Netherlands"]
[Date "2025.05.03"]
[Round "9.18"]
[White "Van Baaren, Joris"]
[Black "Husers, Yannic"]
[Result "0-1"]
[TimeControl "15 min +5 sec increment"]
[WhiteFideId "40108929"]
[BlackFideId "1043587"]
[WhiteElo "1796"]
[BlackElo "2002"]

1. e4 {[%clk 00:15:04]} {[%emt 00:00:05]} e5 {[%clk 00:15:06]} {[%emt
00:00:04]} 2. Nf3 {[%clk 00:15:07]} {[%emt 00:00:02]} Nc6 {[%clk 00:15:06]}
{[%emt 00:00:05]} 3. Bb5 {[%clk 00:15:09]} {[%emt 00:00:02]} f5 {[%clk
00:15:07]} {[%emt 00:00:05]} 4. d3 {[%clk 00:14:50]} {[%emt 00:00:24]} fxe4
{[%clk 00:15:04]} {[%emt 00:00:08]} 5. dxe4 {[%clk 00:14:48]} {[%emt 00:00:06]}
Nf6 {[%clk 00:15:05]} {[%emt 00:00:05]} 6. O-O {[%clk 00:14:50]} {[%emt
00:00:03]} d6 {[%clk 00:15:05]} {[%emt 00:00:05]} 7. Re1 {[%clk 00:14:30]}
{[%emt 00:00:24]} Be7 {[%clk 00:15:04]} {[%emt 00:00:06]} 8. h3 {[%clk
00:14:26]} {[%emt 00:00:09]} O-O {[%clk 00:15:03]} {[%emt 00:00:07]} 9. Bc4+
{[%clk 00:14:24]} {[%emt 00:00:07]} Kh8 {[%clk 00:15:03]} {[%emt 00:00:04]} 10.
c3 {[%clk 00:14:10]} {[%emt 00:00:20]} Qe8 {[%clk 00:14:44]} {[%emt 00:00:24]}
11. a4 {[%clk 00:13:55]} {[%emt 00:00:21]} Nh5 {[%clk 00:14:09]} {[%emt
00:00:39]} 12. Nbd2 {[%clk 00:12:40]} {[%emt 00:01:20]} Qg6 {[%clk 00:13:52]}
{[%emt 00:00:22]} 13. Kh1 {[%clk 00:11:46]} {[%emt 00:00:58]} Nf4 {[%clk
00:13:24]} {[%emt 00:00:34]} 14. Bf1 {[%clk 00:11:48]} {[%emt 00:00:03]} Be6
{[%clk 00:13:13]} {[%emt 00:00:17]} 15. Ng1 {[%clk 00:10:36]} {[%emt 00:01:15]}
Rf7 {[%clk 00:11:58]} {[%emt 00:01:20]} 16. Ndf3 {[%clk 00:09:26]} {[%emt
00:01:15]} Bc4 {[%clk 00:11:06]} {[%emt 00:00:57]} 17. Bxf4 {[%clk 00:09:16]}
{[%emt 00:00:15]} Bxf1 {[%clk 00:11:05]} {[%emt 00:00:07]} 18. Rxf1 {[%clk
00:09:11]} {[%emt 00:00:10]} Rxf4 {[%clk 00:10:57]} {[%emt 00:00:14]} 19. Nd2
{[%clk 00:08:11]} {[%emt 00:01:02]} Raf8 {[%clk 00:10:43]} {[%emt 00:00:20]} 20.
f3 {[%clk 00:08:10]} {[%emt 00:00:06]} Nd8 {[%clk 00:10:20]} {[%emt 00:00:29]}
21. Qe1 {[%clk 00:07:42]} {[%emt 00:00:32]} Ne6 {[%clk 00:09:24]} {[%emt
00:01:02]} 22. Ne2 {[%clk 00:07:28]} {[%emt 00:00:18]} R4f6 {[%clk 00:09:00]}
{[%emt 00:00:29]} 23. Nc4 {[%clk 00:06:32]} {[%emt 00:01:02]} Qh6 {[%clk
00:08:23]} {[%emt 00:00:41]} 24. Ng3 {[%clk 00:06:06]} {[%emt 00:00:31]} Qg5
{[%clk 00:06:37]} {[%emt 00:01:51]} 25. Ne3 {[%clk 00:04:43]} {[%emt 00:01:28]}
g6 {[%clk 00:06:04]} {[%emt 00:00:39]} 26. Ng4 {[%clk 00:03:47]} {[%emt
00:01:00]} R6f7 {[%clk 00:05:56]} {[%emt 00:00:13]} 27. Qe3 {[%clk 00:03:03]}
{[%emt 00:00:50]} Nf4 {[%clk 00:05:47]} {[%emt 00:00:14]} 28. Ne2 {[%clk
00:02:42]} {[%emt 00:00:25]} h5 {[%clk 00:05:30]} {[%emt 00:00:23]} 29. Nxf4
{[%clk 00:02:41]} {[%emt 00:00:06]} hxg4 {[%clk 00:05:29]} {[%emt 00:00:06]} 30.
Nd5 {[%clk 00:02:05]} {[%emt 00:00:41]} Qxe3 {[%clk 00:05:20]} {[%emt
00:00:15]} 31. Nxe3 {[%clk 00:02:09]} gxf3 {[%clk 00:05:16]} {[%emt 00:00:09]}
32. g4 {[%clk 00:01:53]} {[%emt 00:00:20]} Bg5 {[%clk 00:05:09]} {[%emt
00:00:12]} 33. Rae1 {[%clk 00:01:45]} {[%emt 00:00:12]} Kg7 {[%clk 00:04:49]}
{[%emt 00:00:26]} 34. b4 {[%clk 00:01:26]} {[%emt 00:00:24]} Rh8 {[%clk
00:04:53]} {[%emt 00:00:01]} 35. Nd5 {[%clk 00:01:15]} {[%emt 00:00:17]} Rxh3+
{[%clk 00:04:33]} {[%emt 00:00:25]} 36. Kg1 {[%clk 00:01:19]} c6 {[%clk
00:04:18]} {[%emt 00:00:21]} 37. Ne3 {[%clk 00:00:17]} {[%emt 00:01:07]} f2+
{[%clk 00:04:22]} {[%emt 00:00:01]} 0-1

[Event "Open NK Rapid 2025 bord 26-50"]
[Site "Helmond, Netherlands"]
[Date "2025.05.03"]
[Round "9.19"]
[White "Jansz, Wilfred"]
[Black "Rogozyanskiy, Alexander"]
[Result "0-1"]
[TimeControl "15 min +5 sec increment"]
[WhiteFideId "40107353"]
[BlackFideId "1092138"]
[WhiteElo "1996"]
[BlackElo "1726"]

1. e4 {[%clk 00:15:08]} {[%emt 00:00:01]} c6 {[%clk 00:15:09]} {[%emt
00:00:02]} 2. d4 {[%clk 00:15:12]} {[%emt 00:00:01]} d5 {[%clk 00:15:13]}
{[%emt 00:00:01]} 3. Nc3 {[%clk 00:15:15]} dxe4 {[%clk 00:15:13]} {[%emt
00:00:05]} 4. Nxe4 {[%clk 00:15:18]} {[%emt 00:00:02]} Nf6 {[%clk 00:15:14]}
{[%emt 00:00:03]} 5. Ng5 {[%clk 00:15:18]} {[%emt 00:00:06]} Bg4 {[%clk
00:14:56]} {[%emt 00:00:23]} 6. N1f3 {[%clk 00:14:27]} {[%emt 00:00:55]} h6
{[%clk 00:14:51]} {[%emt 00:00:10]} 7. Nxf7 {[%clk 00:14:27]} {[%emt 00:00:05]}
Bxf3 {[%clk 00:14:33]} {[%emt 00:00:24]} 8. Qxf3 {[%clk 00:12:20]} {[%emt
00:02:12]} Kxf7 {[%clk 00:14:34]} {[%emt 00:00:05]} 9. Bc4+ {[%clk 00:12:13]}
{[%emt 00:00:11]} e6 {[%clk 00:14:01]} {[%emt 00:00:37]} 10. O-O {[%clk
00:11:41]} {[%emt 00:00:37]} Qxd4 {[%clk 00:13:33]} {[%emt 00:00:33]} 11. Qb3
{[%clk 00:11:07]} {[%emt 00:00:40]} Qb6 {[%clk 00:12:52]} {[%emt 00:00:46]} 12.
Bxe6+ {[%clk 00:10:42]} {[%emt 00:00:30]} Ke7 {[%clk 00:12:42]} {[%emt
00:00:15]} 13. Qc4 {[%clk 00:10:08]} {[%emt 00:00:39]} Nbd7 {[%clk 00:12:30]}
{[%emt 00:00:16]} 14. Be3 {[%clk 00:08:36]} {[%emt 00:01:37]} Qb5 {[%clk
00:12:25]} {[%emt 00:00:11]} 15. Rfe1 {[%clk 00:07:29]} {[%emt 00:01:12]} Qxc4
{[%clk 00:11:43]} {[%emt 00:00:48]} 16. Bxc4 {[%clk 00:07:32]} {[%emt
00:00:01]} b5 {[%clk 00:11:47]} {[%emt 00:00:01]} 17. Bf4+ {[%clk 00:07:10]}
{[%emt 00:00:27]} Kd8 {[%clk 00:11:31]} {[%emt 00:00:21]} 18. Bf7 {[%clk
00:05:00]} {[%emt 00:02:15]} Kc8 {[%clk 00:10:56]} {[%emt 00:00:40]} 19. Re6
{[%clk 00:04:58]} {[%emt 00:00:07]} Kb7 {[%clk 00:10:46]} {[%emt 00:00:14]} 20.
Rd1 {[%clk 00:04:47]} {[%emt 00:00:16]} Nd5 {[%clk 00:09:57]} {[%emt 00:00:55]}
21. Bg3 {[%clk 00:04:07]} {[%emt 00:00:44]} N7f6 {[%clk 00:09:31]} {[%emt
00:00:32]} 22. b3 {[%clk 00:02:27]} {[%emt 00:01:46]} b4 {[%clk 00:09:13]}
{[%emt 00:00:23]} 23. Be5 {[%clk 00:01:48]} {[%emt 00:00:43]} Nc7 {[%clk
00:08:37]} {[%emt 00:00:41]} 24. Bxf6 {[%clk 00:01:08]} {[%emt 00:00:45]} Nxe6
{[%clk 00:08:11]} {[%emt 00:00:31]} 25. Rd7+ {[%clk 00:01:10]} {[%emt
00:00:03]} Kb6 {[%clk 00:08:00]} {[%emt 00:00:17]} 26. Be5 {[%clk 00:00:56]}
{[%emt 00:00:19]} Ng5 {[%clk 00:07:28]} {[%emt 00:00:36]} 27. Bc7+ {[%clk
00:00:32]} {[%emt 00:00:29]} Kb7 {[%clk 00:06:04]} {[%emt 00:01:30]} 28. Be5+
{[%clk 00:00:15]} {[%emt 00:00:22]} Kb6 {[%clk 00:05:09]} {[%emt 00:00:59]} 29.
Bc7+ {[%clk 00:00:09]} {[%emt 00:00:11]} Kb7 {[%emt 00:00:55]} 30. Bc4 {[%clk
00:00:13]} Re8 {[%emt 00:00:42]} 31. Be5+ {[%clk 00:00:14]} {[%emt 00:00:03]}
Kc8 {[%clk 00:03:36]} {[%emt 00:00:13]} 32. Rc7+ {[%clk 00:00:18]} Kd8 {[%clk
00:03:40]} {[%emt 00:00:01]} 33. f4 {[%clk 00:00:21]} {[%emt 00:00:02]} Rxe5
{[%clk 00:03:37]} {[%emt 00:00:08]} 0-1

[Event "Open NK Rapid 2025 bord 26-50"]
[Site "Helmond, Netherlands"]
[Date "2025.05.03"]
[Round "9.20"]
[White "Mau-Asam, LÃ©on"]
[Black "Schleipfenbauer, Bent"]
[Result "0-1"]
[TimeControl "15 min +5 sec increment"]
[WhiteFideId "40105890"]
[BlackFideId "1048759"]
[WhiteElo "1795"]
[BlackElo "1992"]

1. d4 {[%clk 00:15:08]} {[%emt 00:00:01]} d5 {[%clk 00:15:10]} {[%emt
00:00:01]} 2. c4 {[%clk 00:15:12]} c6 {[%clk 00:15:14]} 3. Nc3 {[%clk
00:15:16]} {[%emt 00:00:01]} Nf6 {[%clk 00:15:18]} 4. e3 {[%clk 00:15:20]}
{[%emt 00:00:01]} e6 {[%clk 00:15:21]} {[%emt 00:00:02]} 5. Nf3 {[%clk
00:15:24]} {[%emt 00:00:02]} Nbd7 {[%clk 00:15:26]} 6. Bd3 {[%clk 00:15:27]}
{[%emt 00:00:02]} dxc4 {[%clk 00:15:30]} {[%emt 00:00:01]} 7. Bxc4 {[%clk
00:15:31]} b5 {[%clk 00:15:20]} {[%emt 00:00:14]} 8. Bb3 {[%clk 00:15:33]}
{[%emt 00:00:03]} b4 {[%clk 00:14:36]} {[%emt 00:00:49]} 9. Ne2 {[%clk
00:15:34]} {[%emt 00:00:03]} Bb7 {[%clk 00:13:30]} {[%emt 00:01:12]} 10. Ng3
{[%clk 00:13:42]} {[%emt 00:01:57]} Bd6 {[%clk 00:12:48]} {[%emt 00:00:47]} 11.
O-O {[%clk 00:11:31]} {[%emt 00:02:16]} O-O {[%clk 00:12:48]} {[%emt 00:00:06]}
12. Bc2 {[%clk 00:11:04]} {[%emt 00:00:31]} c5 {[%clk 00:11:46]} {[%emt
00:01:07]} 13. dxc5 {[%clk 00:07:20]} {[%emt 00:03:50]} Nxc5 {[%clk 00:11:39]}
{[%emt 00:00:12]} 14. Rb1 {[%clk 00:05:06]} {[%emt 00:02:19]} Rc8 {[%clk
00:09:55]} {[%emt 00:01:49]} 15. b3 {[%clk 00:03:37]} {[%emt 00:01:34]} Nce4
{[%clk 00:09:51]} {[%emt 00:00:08]} 16. Qd3 {[%clk 00:02:16]} {[%emt 00:01:26]}
Nxg3 {[%clk 00:09:48]} {[%emt 00:00:08]} 0-1

[Event "Open NK Rapid 2025 bord 26-50"]
[Site "Helmond, Netherlands"]
[Date "2025.05.03"]
[Round "9.22"]
[White "Cakmak, Metehan Tugra"]
[Black "Hoornstra, Hans"]
[Result "1-0"]
[TimeControl "15 min +5 sec increment"]
[WhiteFideId "44583885"]
[BlackFideId "1036076"]
[WhiteElo "1787"]
[BlackElo "1976"]

1. e4 {[%clk 00:15:08]} {[%emt 00:00:02]} c5 {[%clk 00:15:09]} {[%emt
00:00:02]} 2. Nf3 {[%clk 00:15:12]} {[%emt 00:00:01]} Nc6 {[%clk 00:15:13]} 3.
d4 {[%clk 00:15:16]} cxd4 {[%clk 00:15:16]} {[%emt 00:00:01]} 4. Nxd4 {[%clk
00:15:20]} {[%emt 00:00:01]} e5 {[%clk 00:15:18]} {[%emt 00:00:02]} 5. Nf3
{[%clk 00:15:24]} {[%emt 00:00:03]} Nf6 {[%clk 00:15:07]} {[%emt 00:00:16]} 6.
Bd3 {[%clk 00:15:26]} {[%emt 00:00:02]} d5 {[%clk 00:14:59]} {[%emt 00:00:13]}
7. exd5 {[%clk 00:15:15]} {[%emt 00:00:17]} Nxd5 {[%clk 00:14:52]} {[%emt
00:00:11]} 8. O-O {[%clk 00:15:00]} {[%emt 00:00:20]} Be7 {[%clk 00:14:49]}
{[%emt 00:00:08]} 9. Re1 {[%clk 00:14:59]} {[%emt 00:00:06]} f6 {[%clk
00:13:09]} {[%emt 00:01:45]} 10. c3 {[%clk 00:13:46]} {[%emt 00:01:18]} Be6
{[%clk 00:10:49]} {[%emt 00:02:25]} 11. Qc2 {[%clk 00:13:07]} {[%emt 00:00:44]}
g6 {[%clk 00:10:17]} {[%emt 00:00:36]} 12. Be3 {[%clk 00:12:35]} {[%emt
00:00:38]} Kf7 {[%clk 00:10:09]} {[%emt 00:00:13]} 13. Nbd2 {[%clk 00:12:23]}
{[%emt 00:00:17]} Ndb4 {[%clk 00:10:04]} {[%emt 00:00:10]} 14. cxb4 {[%clk
00:11:36]} {[%emt 00:00:53]} Nxb4 {[%clk 00:10:06]} {[%emt 00:00:02]} 15. Bxg6+
{[%clk 00:11:33]} {[%emt 00:00:08]} hxg6 {[%clk 00:09:57]} {[%emt 00:00:13]} 16.
Qa4 {[%clk 00:10:42]} {[%emt 00:00:57]} b5 {[%clk 00:08:46]} {[%emt 00:01:16]}
17. Qxb5 {[%clk 00:09:37]} {[%emt 00:01:10]} Nc2 {[%clk 00:08:49]} {[%emt
00:00:02]} 18. b3 {[%clk 00:09:32]} {[%emt 00:00:10]} Qd5 {[%clk 00:07:16]}
{[%emt 00:01:38]} 19. Qe2 {[%clk 00:09:12]} {[%emt 00:00:26]} e4 {[%clk
00:06:14]} {[%emt 00:01:06]} 20. Nd4 {[%clk 00:08:20]} {[%emt 00:00:57]} Qe5
{[%clk 00:05:39]} {[%emt 00:00:40]} 21. f4 {[%clk 00:07:46]} {[%emt 00:00:39]}
exf3 {[%clk 00:05:41]} {[%emt 00:00:03]} 22. N2xf3 {[%clk 00:07:48]} {[%emt
00:00:04]} Qxe3+ {[%clk 00:05:19]} {[%emt 00:00:26]} 23. Qxe3 {[%clk 00:07:51]}
{[%emt 00:00:02]} Nxe3 {[%clk 00:05:22]} {[%emt 00:00:02]} 24. Rxe3 {[%clk
00:07:54]} {[%emt 00:00:02]} Bc5 {[%clk 00:05:17]} {[%emt 00:00:22]} 1-0

[Event "Open NK Rapid 2025 bord 26-50"]
[Site "Helmond, Netherlands"]
[Date "2025.05.03"]
[Round "9.23"]
[White "Ganeshram, Nirupa"]
[Black "Frederiks, Jesse"]
[Result "0-1"]
[TimeControl "15 min +5 sec increment"]
[WhiteFideId "1083031"]
[BlackFideId "1095790"]
[WhiteElo "1679"]
[BlackElo "1937"]

1. e4 {[%clk 00:15:08]} {[%emt 00:00:02]} e5 {[%clk 00:15:08]} {[%emt
00:00:02]} 2. Nf3 {[%clk 00:15:11]} {[%emt 00:00:02]} Nc6 {[%clk 00:15:12]} 3.
d4 {[%clk 00:15:15]} {[%emt 00:00:02]} exd4 {[%clk 00:15:13]} {[%emt 00:00:04]}
4. Bc4 {[%clk 00:15:18]} Nf6 {[%clk 00:15:16]} {[%emt 00:00:02]} 5. e5 {[%clk
00:15:22]} {[%emt 00:00:02]} Ne4 {[%clk 00:15:20]} {[%emt 00:00:01]} 6. Qe2
{[%clk 00:15:15]} {[%emt 00:00:11]} Bb4+ {[%clk 00:15:17]} {[%emt 00:00:07]} 7.
Bd2 {[%clk 00:14:33]} {[%emt 00:00:48]} Nxd2 {[%clk 00:15:17]} {[%emt
00:00:05]} 8. Nbxd2 {[%clk 00:14:36]} {[%emt 00:00:02]} O-O {[%clk 00:15:08]}
{[%emt 00:00:13]} 9. O-O {[%clk 00:14:05]} {[%emt 00:00:37]} Bxd2 {[%clk
00:15:06]} {[%emt 00:00:06]} 10. Qxd2 {[%clk 00:13:56]} {[%emt 00:00:15]} d5
{[%clk 00:14:48]} {[%emt 00:00:24]} 11. Bb5 {[%clk 00:13:29]} {[%emt 00:00:32]}
Be6 {[%clk 00:13:51]} {[%emt 00:01:01]} 12. Bxc6 {[%clk 00:13:15]} {[%emt
00:00:19]} bxc6 {[%clk 00:13:54]} {[%emt 00:00:02]} 13. Nxd4 {[%clk 00:13:12]}
{[%emt 00:00:08]} c5 {[%clk 00:13:51]} {[%emt 00:00:09]} 14. Nb3 {[%clk
00:12:58]} {[%emt 00:00:19]} Qe7 {[%clk 00:13:39]} {[%emt 00:00:17]} 15. f4
{[%clk 00:12:21]} {[%emt 00:00:41]} d4 {[%clk 00:12:56]} {[%emt 00:00:48]} 16.
Rae1 {[%clk 00:11:38]} {[%emt 00:00:47]} g6 {[%clk 00:12:30]} {[%emt 00:00:31]}
17. Qa5 {[%clk 00:11:01]} {[%emt 00:00:43]} Bxb3 {[%clk 00:11:38]} {[%emt
00:00:57]} 18. axb3 {[%clk 00:10:59]} {[%emt 00:00:08]} Rfd8 {[%clk 00:11:09]}
{[%emt 00:00:34]} 19. Qd2 {[%clk 00:08:30]} {[%emt 00:02:33]} Rab8 {[%clk
00:10:03]} {[%emt 00:01:10]} 20. Qe2 {[%clk 00:06:58]} {[%emt 00:01:38]} Rb6
{[%clk 00:09:47]} {[%emt 00:00:21]} 21. f5 {[%clk 00:06:18]} {[%emt 00:00:45]}
Qg5 {[%clk 00:08:50]} {[%emt 00:01:02]} 22. e6 {[%clk 00:05:03]} {[%emt
00:01:20]} fxe6 {[%clk 00:08:12]} {[%emt 00:00:43]} 23. fxe6 {[%clk 00:04:45]}
{[%emt 00:00:24]} Qe3+ {[%clk 00:07:25]} {[%emt 00:00:52]} 24. Qxe3 {[%clk
00:04:42]} {[%emt 00:00:08]} dxe3 {[%clk 00:07:29]} 25. e7 {[%clk 00:04:29]}
{[%emt 00:00:18]} Re8 {[%clk 00:07:25]} {[%emt 00:00:08]} 26. Rxe3 {[%clk
00:04:27]} {[%emt 00:00:07]} Rd6 {[%clk 00:07:06]} {[%emt 00:00:24]} 27. Rfe1
{[%clk 00:02:53]} {[%emt 00:01:39]} Rd7 {[%clk 00:06:40]} {[%emt 00:00:30]} 28.
Kf2 {[%clk 00:02:42]} {[%emt 00:00:16]} Kf7 {[%clk 00:06:42]} {[%emt 00:00:03]}
29. Rf3+ {[%clk 00:02:42]} {[%emt 00:00:06]} Kg7 {[%clk 00:06:46]} 30. Rfe3
{[%clk 00:02:35]} {[%emt 00:00:13]} Kf7 {[%clk 00:06:33]} {[%emt 00:00:18]} 31.
Kf3 {[%clk 00:01:45]} {[%emt 00:00:54]} Rdxe7 {[%clk 00:06:24]} {[%emt
00:00:13]} 32. Rxe7+ {[%clk 00:01:31]} {[%emt 00:00:21]} Rxe7 {[%clk 00:06:28]}
33. Rxe7+ {[%clk 00:01:26]} {[%emt 00:00:11]} Kxe7 {[%clk 00:06:32]} {[%emt
00:00:01]} 34. Kf4 {[%clk 00:01:16]} {[%emt 00:00:15]} Kf6 {[%clk 00:06:31]}
{[%emt 00:00:06]} 35. h4 {[%clk 00:00:57]} {[%emt 00:00:24]} h6 {[%clk
00:06:07]} {[%emt 00:00:28]} 36. Ke4 {[%clk 00:00:37]} {[%emt 00:00:24]} c6
{[%clk 00:05:48]} {[%emt 00:00:24]} 37. g4 {[%clk 00:00:23]} {[%emt 00:00:20]}
g5 {[%clk 00:05:45]} {[%emt 00:00:08]} 38. hxg5+ {[%clk 00:00:11]} {[%emt
00:00:17]} hxg5 {[%clk 00:05:48]} {[%emt 00:00:02]} 39. c3 {[%clk 00:00:14]}
{[%emt 00:00:02]} a5 {[%clk 00:05:47]} {[%emt 00:00:06]} 40. b4 {[%clk
00:00:12]} {[%emt 00:00:08]} cxb4 {[%clk 00:05:23]} {[%emt 00:00:29]} 41. cxb4
{[%clk 00:00:16]} axb4 {[%clk 00:05:27]} {[%emt 00:00:01]} 42. Kd4 {[%clk
00:00:18]} {[%emt 00:00:02]} Ke6 {[%clk 00:05:30]} {[%emt 00:00:02]} 43. Kc5
{[%clk 00:00:15]} {[%emt 00:00:09]} b3 {[%clk 00:05:18]} {[%emt 00:00:17]} 44.
Kxc6 {[%clk 00:00:12]} {[%emt 00:00:07]} Ke5 {[%clk 00:05:23]} {[%emt
00:00:01]} 45. Kc5 {[%clk 00:00:16]} Kf4 {[%clk 00:05:27]} 46. Kc4 {[%clk
00:00:20]} {[%emt 00:00:01]} Kxg4 {[%clk 00:05:31]} 47. Kxb3 {[%clk 00:00:24]}
Kh4 {[%clk 00:05:29]} {[%emt 00:00:07]} 48. Kc4 {[%clk 00:00:27]} {[%emt
00:00:03]} g4 {[%clk 00:05:33]} 49. b4 {[%clk 00:00:29]} {[%emt 00:00:02]} g3
{[%clk 00:05:36]} {[%emt 00:00:02]} 50. b5 {[%clk 00:00:28]} {[%emt 00:00:07]}
g2 {[%clk 00:05:40]} 51. b6 {[%clk 00:00:25]} {[%emt 00:00:08]} g1=Q {[%clk
00:05:43]} {[%emt 00:00:02]} 52. Kb5 {[%clk 00:00:29]} {[%emt 00:00:01]} Qg8
{[%clk 00:05:44]} {[%emt 00:00:04]} 53. Kc6 {[%clk 00:00:29]} {[%emt 00:00:06]}
Qb8 {[%clk 00:05:48]} {[%emt 00:00:01]} 0-1